fUSD/lending_fUSD_20240628
["ID","MTS","AMOUNT","RATE_DAILY","PERIOD"]
[330526970,1719558732796,-2386.74,0.00020273,2]
[330526971,1719558732805,-500.0,0.00020273,2]
[330526972,1719558732814,-582.95,0.00020273,2]
[330526973,1719558732823,-531.63,0.00020273,2]
[330526974,1719558732833,-500.0,0.00020273,2]
[330526975,1719558732842,-2068.97,0.00020273,2]
[330526976,1719558732851,-500.0,0.00020273,2]
[330526977,1719558732860,-851.02,0.00020273,2]
[330526978,1719558732870,-500.0,0.00020273,2]
[330526979,1719558732879,-500.0,0.00020273,2]
[330526980,1719558732888,-500.0,0.00020273,2]
[330526981,1719558732897,-2076.19,0.00020273,2]
[330526982,1719558732906,-2225.32,0.00020273,2]
[330526983,1719558732916,-3840.25,0.00020273,2]
[330526984,1719558732926,-712.82,0.00020273,2]
[330526985,1719558732935,-1143.68,0.00020273,2]
[330526986,1719558732944,-500.0,0.00020273,2]
[330526987,1719558732953,-1392.44,0.00020273,2]
[330526988,1719558732963,-6077.81,0.00020273,2]
[330526989,1719558732972,-753.76,0.00020273,2]
[330526990,1719558732981,-500.0,0.00020273,2]
[330526991,1719558732990,-500.0,0.00020273,2]
[330526992,1719558732999,-1105.67,0.00020273,2]
[330526993,1719558733009,-500.0,0.00020273,2]
[330526994,1719558733018,-629.91536485,0.00020273,2]
[330526995,1719558733027,-1578.03,0.00020273,2]
[330526996,1719558733037,-560.48,0.00020273,2]
[330526997,1719558733046,-632.32,0.00020273,2]
[330526998,1719558733055,-1002.32,0.00020273,2]
[330526999,1719558733065,-500.0,0.00020273,2]
[330527000,1719558733076,-1981.01,0.00020273,2]
[330527001,1719558733086,-500.0,0.00020273,2]
[330527002,1719558733098,-718.91,0.00020273,2]
[330527003,1719558733112,-500.0,0.00020273,2]
[330527004,1719558733121,-2329.42,0.00020273,2]
[330527005,1719558733130,-500.0,0.00020273,2]
[330527006,1719558733141,-1316.28,0.00020273,2]
[330527007,1719558733151,-1144.62,0.00020273,2]
[330527008,1719558733161,-500.0,0.00020273,2]
[330527009,1719558733171,-1712.61,0.00020273,2]
[330527010,1719558733183,-1563.65,0.00020273,2]
[330527011,1719558733192,-500.0,0.00020273,2]
[330527012,1719558733202,-2454.2,0.00020273,2]
[330527013,1719558733211,-500.0,0.00020273,2]
[330527014,1719558733220,-500.0,0.00020273,2]
[330527015,1719558733230,-500.0,0.00020273,2]
[330527016,1719558733239,-500.0,0.00020273,2]
[330527017,1719558733248,-1141.19,0.00020273,2]
[330527018,1719558733258,-3101.9,0.00020273,2]
[330527019,1719558733267,-500.0,0.00020273,2]
[330527020,1719558733276,-500.0,0.00020273,2]
[330527021,1719558733285,-610.25,0.00020273,2]
[330527022,1719558733295,-500.0,0.00020273,2]
[330527023,1719558733304,-500.0,0.00020273,2]
[330527024,1719558733313,-636.15828553,0.00020273,2]
[330527025,1719558733323,-1574.21,0.00020273,2]
[330527026,1719558733333,-500.0,0.00020273,2]
[330527027,1719558733342,-2674.4,0.00020273,2]
[330527028,1719558733352,-634.6,0.00020273,2]
[330527029,1719558733363,-754.7,0.00020273,2]
[330527030,1719558733375,-500.0,0.00020273,2]
[330527031,1719558733386,-6990.29,0.00020273,2]
[330527032,1719558733396,-2060.65,0.00020273,2]
[330527033,1719558733405,-186.39114813,0.00020273,2]
[330527034,1719558733416,-1842.26,0.00020273,2]
[330527035,1719558733424,-963.45,0.00020273,2]
[330527036,1719558733433,-500.0,0.00020273,2]
[330527037,1719558733446,-14366.4,0.00020273,2]
[330527038,1719558733455,-2857.87,0.00020273,2]
[330527039,1719558733464,-500.0,0.00020273,2]
[330527040,1719558733474,-1171.76,0.00020273,2]
[330527041,1719558733483,-558.83,0.00020273,2]
[330527042,1719558733492,-1203.56,0.00020273,2]
[330527043,1719558733501,-500.0,0.00020273,2]
[330527044,1719558733511,-500.0,0.00020273,2]
[330527045,1719558733520,-500.0,0.00020273,2]
[330527046,1719558733529,-3675.92,0.00020273,2]
[330527047,1719558733539,-2811.74,0.00020273,2]
[330527048,1719558733548,-1680.8,0.00020273,2]
[330527049,1719558733557,-1244.61,0.00020273,2]
[330527050,1719558733567,-641.86,0.00020273,2]
[330527051,1719558733576,-2271.99,0.00020273,2]
[330527052,1719558733585,-865.19,0.00020273,2]
[330527053,1719558733595,-631.75,0.00020273,2]
[330527054,1719558733604,-500.0,0.00020273,2]
[330527055,1719558733723,-955.4,0.00020273,2]
[330527056,1719558733734,-500.0,0.00020273,2]
[330527057,1719558733744,-891.75,0.00020273,2]
[330527058,1719558733754,-500.0,0.00020273,2]
[330527059,1719558733763,-1486.73,0.00020273,2]
[330527060,1719558733772,-1073.63,0.00020273,2]
[330527061,1719558733781,-516.07,0.00020273,2]
[330527062,1719558733790,-3152.16,0.00020273,2]
[330527063,1719558733799,-500.0,0.00020273,2]
[330527064,1719558733809,-500.0,0.00020273,2]
[330527065,1719558733818,-2841.69,0.00020273,2]
[330527066,1719558733827,-768.74,0.00020273,2]
[330527067,1719558733836,-3121.13,0.00020273,2]
[330527068,1719558733845,-1346.16,0.00020273,2]
[330527069,1719558733855,-94318.51,0.00020273,2]
[330527070,1719558733863,-500.0,0.00020273,2]
[330527071,1719558733872,-1232.34,0.00020273,2]
[330527072,1719558733882,-500.0,0.00020273,2]
[330527073,1719558733891,-500.0,0.00020273,2]
[330527074,1719558733900,-546.98,0.00020273,2]
[330527075,1719558733909,-500.0,0.00020273,2]
[330527076,1719558733919,-1794.64,0.00020273,2]
[330527077,1719558733928,-1919.41,0.00020273,2]
[330527078,1719558733938,-500.0,0.00020273,2]
[330527079,1719558733947,-3062.76,0.00020273,2]
[330527080,1719558733956,-500.0,0.00020273,2]
[330527081,1719558733965,-1494.4,0.00020273,2]
[330527082,1719558733974,-500.0,0.00020273,2]
[330527083,1719558733984,-2328.24,0.00020273,2]
[330527084,1719558733993,-1132.48,0.00020273,2]
[330527085,1719558734002,-1692.21,0.00020273,2]
[330527086,1719558734011,-587.64,0.00020273,2]
[330527087,1719558734020,-500.0,0.00020273,2]
[330527088,1719558734030,-500.0,0.00020273,2]
[330527089,1719558734039,-500.0,0.00020273,2]
[330527090,1719558734048,-1549.64,0.00020273,2]
[330527091,1719558734057,-749.53,0.00020273,2]
[330527092,1719558734066,-500.0,0.00020273,2]
[330527093,1719558734075,-500.0,0.00020273,2]
[330527094,1719558734084,-500.0,0.00020273,2]
[330527095,1719558734094,-2990.61,0.00020273,2]
[330527096,1719558734108,-500.0,0.00020273,2]
[330527097,1719558734117,-500.0,0.00020273,2]
[330527098,1719558734127,-5676.22,0.00020273,2]
[330527099,1719558734136,-1406.76,0.00020273,2]
[330527100,1719558734148,-1699.92,0.00020273,2]
[330527101,1719558734158,-500.0,0.00020273,2]
[330527102,1719558734168,-500.0,0.00020273,2]
[330527103,1719558734180,-6172.44,0.00020273,2]
[330527104,1719558734190,-1151.27,0.00020273,2]
[330527105,1719558734199,-2223.09,0.00020273,2]
[330527106,1719558734208,-1028.2,0.00020273,2]
[330527107,1719558734217,-1414.06,0.00020273,2]
[330527108,1719558734227,-500.0,0.00020273,2]
[330527109,1719558734236,-1326.41,0.00020273,2]
[330527110,1719558734245,-828.67,0.00020273,2]
[330527111,1719558734254,-2053.7,0.00020273,2]
[330527112,1719558734263,-500.0,0.00020273,2]
[330527113,1719558734272,-500.0,0.00020273,2]
[330527114,1719558734281,-1337.2,0.00020273,2]
[330527115,1719558734291,-500.0,0.00020273,2]
[330527116,1719558734299,-500.0,0.00020273,2]
[330527117,1719558734309,-500.0,0.00020273,2]
[330527118,1719558734318,-1272.4,0.00020273,2]
[330527119,1719558734327,-20000.0,0.00020273,2]
[330527120,1719558734336,-2249.71,0.00020273,2]
[330527121,1719558734345,-500.0,0.00020273,2]
[330527122,1719558734354,-991.33,0.00020273,2]
[330527123,1719558734363,-911.5,0.00020273,2]
[330527124,1719558734372,-500.0,0.00020273,2]
[330527125,1719558734381,-1776.01,0.00020273,2]
[330527126,1719558734390,-500.0,0.00020273,2]
[330527127,1719558734400,-500.0,0.00020273,2]
[330527128,1719558734409,-500.0,0.00020273,2]
[330527129,1719558734419,-2155.64,0.00020273,2]
[330527130,1719558734429,-1857.47,0.00020273,2]
[330527131,1719558734438,-500.0,0.00020273,2]
[330527132,1719558734447,-765.5,0.00020273,2]
[330527133,1719558734456,-3125.25,0.00020273,2]
[330527134,1719558734465,-500.0,0.00020273,2]
[330527135,1719558734474,-500.0,0.00020273,2]
[330527136,1719558734483,-837.45,0.00020273,2]
[330527137,1719558734494,-559.67,0.00020273,2]
[330527138,1719558734505,-1334.79,0.00020273,2]
[330527139,1719558734514,-500.0,0.00020273,2]
[330527140,1719558734523,-2687.59,0.00020273,2]
[330527141,1719558734532,-6386.04,0.00020273,2]
[330527142,1719558734541,-982.76,0.00020273,2]
[330527143,1719558734550,-500.0,0.00020273,2]
[330527144,1719558734567,-3632.77,0.00020273,2]
[330527145,1719558734576,-500.0,0.00020273,2]
[330527146,1719558734585,-2037.7,0.00020273,2]
[330527147,1719558734595,-3058.6,0.00020273,2]
[330527148,1719558734604,-500.0,0.00020273,2]
[330527149,1719558734613,-1150.81,0.00020273,2]
[330527150,1719558734622,-1265.33,0.00020273,2]
[330527151,1719558734631,-5445.86,0.00020273,2]
[330527152,1719558734640,-2092.76,0.00020273,2]
[330527153,1719558734649,-500.0,0.00020273,2]
[330527154,1719558734658,-500.0,0.00020273,2]
[330527155,1719558734667,-500.0,0.00020273,2]
[330527156,1719558734677,-2347.47,0.00020273,2]
[330527157,1719558734686,-3956.23,0.00020273,2]
[330527158,1719558734695,-2747.06,0.00020273,2]
[330527159,1719558734703,-607.16596986,0.00020273,2]
[330527160,1719558734713,-279.86045666,0.00020273,2]
[330527161,1719558734722,-500.0,0.00020273,2]
[330527162,1719558734731,-1187.2,0.00020273,2]
[330527163,1719558734740,-794.56,0.00020273,2]
[330527164,1719558734750,-500.0,0.00020273,2]
[330527165,1719558734759,-1734.74,0.00020273,2]
[330527166,1719558734768,-750.32,0.00020273,2]
[330527167,1719558734778,-697.84,0.00020273,2]
[330527168,1719558734787,-1162.29,0.00020273,2]
[330527169,1719558734796,-1131.13,0.00020273,2]
[330527170,1719558734805,-1270.56,0.00020273,2]
[330527171,1719558734814,-563.55,0.00020273,2]
[330527172,1719558734823,-500.0,0.00020273,2]
[330527173,1719558734832,-652.88,0.00020273,2]
[330527174,1719558734841,-534.31,0.00020273,2]
[330527175,1719558734850,-500.0,0.00020273,2]
[330527176,1719558734859,-332.42255846,0.00020273,2]
[330527177,1719558734868,-701.47,0.00020273,2]
[330527178,1719558734877,-894.63,0.00020273,2]
[330527179,1719558734886,-3879.02,0.00020273,2]
[330527180,1719558734895,-3149.86,0.00020273,2]
[330527181,1719558734904,-3389.68,0.00020273,2]
[330527182,1719558734914,-962.59,0.00020273,2]
[330527183,1719558734924,-818.23,0.00020273,2]
[330527184,1719558734933,-922.79,0.00020273,2]
[330527185,1719558734942,-815.93,0.00020273,2]
[330527186,1719558734951,-1891.16,0.00020273,2]
[330527187,1719558734960,-500.0,0.00020273,2]
[330527188,1719558734971,-500.0,0.00020273,2]
[330527189,1719558734980,-500.0,0.00020273,2]
[330527190,1719558734989,-961.91,0.00020273,2]
[330527191,1719558734998,-500.0,0.00020273,2]
[330527192,1719558735008,-500.0,0.00020273,2]
[330527193,1719558735017,-1722.25,0.00020273,2]
[330527194,1719558735026,-841.12,0.00020273,2]
[330527195,1719558735036,-521.81,0.00020273,2]
[330527196,1719558735045,-653.73,0.00020273,2]
[330527197,1719558735054,-500.0,0.00020273,2]
[330527198,1719558735063,-516.01,0.00020273,2]
[330527199,1719558735072,-614.82486348,0.00020273,2]
[330527200,1719558735081,-4010.03,0.00020273,2]
[330527201,1719558735091,-5736.35,0.00020273,2]
[330527202,1719558735106,-1901.06,0.00020273,2]
[330527203,1719558735115,-968.86,0.00020273,2]
[330527204,1719558735125,-5130.51,0.00020273,2]
[330527205,1719558735134,-500.0,0.00020273,2]
[330527206,1719558735145,-808.32,0.00020273,2]
[330527207,1719558735154,-1271.97,0.00020273,2]
[330527208,1719558735164,-869.41,0.00020273,2]
[330527209,1719558735176,-500.0,0.00020273,2]
[330527210,1719558735185,-1056.35,0.00020273,2]
[330527211,1719558735195,-526.66918242,0.00020273,2]
[330527212,1719558735204,-1019.98,0.00020273,2]
[330527213,1719558735213,-500.0,0.00020273,2]
[330527214,1719558735223,-4292.01,0.00020273,2]
[330527215,1719558735232,-1954.39,0.00020273,2]
[330527216,1719558735241,-838.06,0.00020273,2]
[330527217,1719558735250,-500.0,0.00020273,2]
[330527218,1719558735260,-4145.59,0.00020273,2]
[330527219,1719558735269,-500.0,0.00020273,2]
[330527220,1719558735278,-1653.88,0.00020273,2]
[330527221,1719558735288,-1093.84,0.00020273,2]
[330527222,1719558735297,-2173.89,0.00020273,2]
[330527223,1719558735307,-4452.14,0.00020273,2]
[330527224,1719558735316,-500.0,0.00020273,2]
[330527225,1719558735325,-3440.08,0.00020273,2]
[330527226,1719558735334,-2256.77,0.00020273,2]
[330527227,1719558735344,-1092.07,0.00020273,2]
[330527228,1719558735354,-1205.22,0.00020273,2]
[330527229,1719558735363,-500.0,0.00020273,2]
[330527230,1719558735373,-6481.89,0.00020273,2]
[330527231,1719558735382,-970.21,0.00020273,2]
[330527232,1719558735394,-1015.77,0.00020273,2]
[330527233,1719558735403,-1258.06,0.00020273,2]
[330527234,1719558735412,-500.0,0.00020273,2]
[330527235,1719558735423,-756.72,0.00020273,2]
[330527236,1719558735432,-500.0,0.00020273,2]
[330527237,1719558735441,-2781.99,0.00020273,2]
[330527238,1719558735450,-966.96,0.00020273,2]
[330527239,1719558735459,-1416.17,0.00020273,2]
[330527240,1719558735468,-1711.73,0.00020273,2]
[330527241,1719558735478,-4037.57,0.00020273,2]
[330527242,1719558735488,-500.0,0.00020273,2]
[330527243,1719558735498,-1538.54,0.00020273,2]
[330527244,1719558735507,-500.0,0.00020273,2]
[330527245,1719558735517,-500.0,0.00020273,2]
[330527246,1719558735527,-688.39,0.00020273,2]
[330527247,1719558735537,-500.0,0.00020273,2]
[330527248,1719558735547,-500.0,0.00020273,2]
[330527249,1719558735557,-998.94,0.00020273,2]
[330527250,1719558735566,-500.0,0.00020273,2]
[330527251,1719558735576,-500.0,0.00020273,2]
[330527252,1719558735586,-4654.37,0.00020273,2]
[330527253,1719558735597,-500.0,0.00020273,2]
[330527254,1719558735606,-500.0,0.00020273,2]
[330527255,1719558735616,-2829.41,0.00020273,2]
[330527256,1719558735626,-890.23,0.00020273,2]
[330527257,1719558735636,-1013.81,0.00020273,2]
[330527258,1719558735648,-6549.64,0.00020273,2]
[330527259,1719558735658,-1221.16,0.00020273,2]
[330527260,1719558735668,-5081.21,0.00020273,2]
[330527261,1719558735677,-533.3,0.00020273,2]
[330527262,1719558735687,-500.0,0.00020273,2]
[330527263,1719558735696,-732.25,0.00020273,2]
[330527264,1719558735705,-3679.5,0.00020273,2]
[330527265,1719558735715,-1623.52,0.00020273,2]
[330527266,1719558735725,-1337.52,0.00020273,2]
[330527267,1719558735734,-641.03,0.00020273,2]
[330527268,1719558735743,-525.72,0.00020273,2]
[330527269,1719558735752,-3791.95,0.00020273,2]
[330527270,1719558735761,-605.33,0.00020273,2]
[330527271,1719558735770,-500.0,0.00020273,2]
[330527272,1719558735779,-500.0,0.00020273,2]
[330527273,1719558735789,-1778.34,0.00020273,2]
[330527274,1719558735799,-500.0,0.00020273,2]
[330527275,1719558735809,-5370.36,0.00020273,2]
[330527276,1719558735818,-6691.24,0.00020273,2]
[330527277,1719558735827,-500.0,0.00020273,2]
[330527278,1719558735836,-500.0,0.00020273,2]
[330527279,1719558735846,-500.0,0.00020273,2]
[330527280,1719558735855,-3471.97,0.00020273,2]
[330527281,1719558735864,-669.45,0.00020273,2]
[330527282,1719558735875,-500.0,0.00020273,2]
[330527283,1719558735884,-5958.69,0.00020273,2]
[330527284,1719558735893,-1237.21,0.00020273,2]
[330527285,1719558735902,-500.0,0.00020273,2]
[330527286,1719558735912,-976.4,0.00020273,2]
[330527287,1719558735922,-1290.13,0.00020273,2]
[330527288,1719558735931,-500.0,0.00020273,2]
[330527289,1719558735940,-30754.66,0.00020273,2]
[330527290,1719558735950,-500.0,0.00020273,2]
[330527291,1719558735959,-570.63,0.00020273,2]
[330527292,1719558735968,-2968.59,0.00020273,2]
[330527293,1719558735977,-1454.37,0.00020273,2]
[330527294,1719558735987,-522.16,0.00020273,2]
[330527295,1719558735997,-1371.95,0.00020273,2]
[330527296,1719558736008,-500.0,0.00020273,2]
[330527297,1719558736019,-671.81,0.00020273,2]
[330527298,1719558736028,-1240.17,0.00020273,2]
[330527299,1719558736037,-749.05,0.00020273,2]
[330527300,1719558736047,-5105.82,0.00020273,2]
[330527301,1719558736057,-718.73,0.00020273,2]
[330527302,1719558736067,-500.0,0.00020273,2]
[330527303,1719558736077,-485.13775318,0.00020273,2]
[330527304,1719558736086,-500.0,0.00020273,2]
[330527305,1719558736097,-1031.18,0.00020273,2]
[330527306,1719558736110,-500.0,0.00020273,2]
[330527307,1719558736121,-904.03,0.00020273,2]
[330527308,1719558736132,-500.0,0.00020273,2]
[330527309,1719558736143,-500.0,0.00020273,2]
[330527310,1719558736157,-1722.3,0.00020273,2]
[330527311,1719558736168,-1449.03,0.00020273,2]
[330527312,1719558736179,-660.51,0.00020273,2]
[330527313,1719558736189,-824.89,0.00020273,2]
[330527314,1719558736198,-533.7,0.00020273,2]
[330527315,1719558736207,-266.80431097,0.00020273,2]
[330527316,1719558736217,-1483.53,0.00020273,2]
[330527317,1719558736226,-4126.2,0.00020273,2]
[330527318,1719558736236,-500.0,0.00020273,2]
[330527319,1719558736246,-500.0,0.00020273,2]
[330527320,1719558736256,-1317.53,0.00020273,2]
[330527321,1719558736266,-500.0,0.00020273,2]
[330527322,1719558736275,-933.61,0.00020273,2]
[330527323,1719558736285,-500.0,0.00020273,2]
[330527324,1719558736295,-500.0,0.00020273,2]
[330527325,1719558736304,-533.93,0.00020273,2]
[330527326,1719558736313,-823.66,0.00020273,2]
[330527327,1719558736322,-2750.42,0.00020273,2]
[330527328,1719558736331,-500.0,0.00020273,2]
[330527329,1719558736340,-500.0,0.00020273,2]
[330527330,1719558736349,-500.0,0.00020273,2]
[330527331,1719558736358,-6561.73,0.00020273,2]
[330527332,1719558736367,-818.57,0.00020273,2]
[330527333,1719558736377,-5380.04,0.00020273,2]
[330527334,1719558736386,-909.91,0.00020273,2]
[330527335,1719558736394,-2362.86,0.00020273,2]
[330527336,1719558736404,-1741.22,0.00020273,2]
[330527337,1719558736413,-4215.13,0.00020273,2]
[330527338,1719558736423,-500.0,0.00020273,2]
[330527339,1719558736432,-500.0,0.00020273,2]
[330527340,1719558736441,-500.0,0.00020273,2]
[330527341,1719558736450,-899.16,0.00020273,2]
[330527342,1719558736459,-1363.98,0.00020273,2]
[330527343,1719558736468,-1095.37,0.00020273,2]
[330527344,1719558736478,-500.0,0.00020273,2]
[330527345,1719558736487,-285.87549465,0.00020273,2]
[330527346,1719558736495,-1348.73,0.00020273,2]
[330527347,1719558736504,-393.91529688,0.00020273,2]
[330527348,1719558736513,-500.0,0.00020273,2]
[330527349,1719558736522,-2784.49,0.00020273,2]
[330527350,1719558736531,-5415.16,0.00020273,2]
[330527351,1719558736541,-517.98,0.00020273,2]
[330527352,1719558736550,-721.89,0.00020273,2]
[330527353,1719558736559,-1366.3,0.00020273,2]
[330527354,1719558736568,-500.0,0.00020273,2]
[330527355,1719558736577,-1467.32,0.00020273,2]
[330527356,1719558736586,-500.0,0.00020273,2]
[330527357,1719558736595,-500.0,0.00020273,2]
[330527358,1719558736604,-500.0,0.00020273,2]
[330527359,1719558736613,-500.0,0.00020273,2]
[330527360,1719558736622,-3205.37,0.00020273,2]
[330527361,1719558736632,-500.0,0.00020273,2]
[330527362,1719558736641,-500.0,0.00020273,2]
[330527363,1719558736650,-1363.3,0.00020273,2]
[330527364,1719558736658,-500.0,0.00020273,2]
[330527365,1719558736667,-663.91,0.00020273,2]
[330527366,1719558736678,-500.0,0.00020273,2]
[330527367,1719558736687,-500.0,0.00020273,2]
[330527368,1719558736701,-500.0,0.00020273,2]
[330527369,1719558736710,-6818.21,0.00020273,2]
[330527370,1719558736720,-1566.24,0.00020273,2]
[330527371,1719558736730,-651.46,0.00020273,2]
[330527372,1719558736740,-597.99,0.00020273,2]
[330527373,1719558736749,-500.0,0.00020273,2]
[330527374,1719558736759,-2414.6,0.00020273,2]
[330527375,1719558736768,-500.0,0.00020273,2]
[330527376,1719558736777,-500.0,0.00020273,2]
[330527377,1719558736787,-3214.15,0.00020273,2]
[330527378,1719558736796,-500.0,0.00020273,2]
[330527379,1719558736805,-528.28,0.00020273,2]
[330527380,1719558736814,-500.0,0.00020273,2]
[330527381,1719558736823,-2931.11,0.00020273,2]
[330527382,1719558736832,-1055.48,0.00020273,2]
[330527383,1719558736841,-500.0,0.00020273,2]
[330527384,1719558736850,-3013.27,0.00020273,2]
[330527385,1719558736859,-902.19,0.00020273,2]
[330527386,1719558736869,-547.17,0.00020273,2]
[330527387,1719558736878,-2204.01,0.00020273,2]
[330527388,1719558736887,-2062.6,0.00020273,2]
[330527389,1719558736896,-500.0,0.00020273,2]
[330527390,1719558736904,-643.99815205,0.00020273,2]
[330527391,1719558736914,-397.82684383,0.00020273,2]
[330527392,1719558736925,-1752.12,0.00020273,2]
[330527393,1719558736934,-4074.54,0.00020273,2]
[330527394,1719558736943,-939.85,0.00020273,2]
[330527395,1719558736952,-4246.42,0.00020273,2]
[330527396,1719558736961,-500.0,0.00020273,2]
[330527397,1719558736970,-500.0,0.00020273,2]
[330527398,1719558736980,-2149.46,0.00020273,2]
[330527399,1719558736989,-753.24,0.00020273,2]
[330527400,1719558736999,-3942.97,0.00020273,2]
[330527401,1719558737008,-500.0,0.00020273,2]
[330527402,1719558737018,-500.0,0.00020273,2]
[330527403,1719558737027,-3207.38,0.00020273,2]
[330527404,1719558737036,-500.0,0.00020273,2]
[330527405,1719558737045,-500.0,0.00020273,2]
[330527406,1719558737054,-933.87,0.00020273,2]
[330527407,1719558737063,-500.0,0.00020273,2]
[330527408,1719558737072,-1223.64,0.00020273,2]
[330527409,1719558737082,-657.09,0.00020273,2]
[330527410,1719558737092,-1111.0,0.00020273,2]
[330527411,1719558737105,-3654.55,0.00020273,2]
[330527412,1719558737115,-1410.72,0.00020273,2]
[330527413,1719558737124,-2279.59,0.00020273,2]
[330527414,1719558737134,-500.0,0.00020273,2]
[330527415,1719558737144,-500.0,0.00020273,2]
[330527416,1719558737154,-664.58,0.00020273,2]
[330527417,1719558737164,-1139.96,0.00020273,2]
[330527418,1719558737175,-2137.53,0.00020273,2]
[330527419,1719558737186,-2393.99,0.00020273,2]
[330527420,1719558737196,-500.0,0.00020273,2]
[330527421,1719558737205,-642.75,0.00020273,2]
[330527422,1719558737214,-1353.36,0.00020273,2]
[330527423,1719558737223,-1653.07,0.00020273,2]
[330527424,1719558737233,-3566.37,0.00020273,2]
[330527425,1719558737242,-500.0,0.00020273,2]
[330527426,1719558737251,-1624.98,0.00020273,2]
[330527427,1719558737260,-2052.93,0.00020273,2]
[330527428,1719558737270,-1582.92,0.00020273,2]
[330527429,1719558737280,-1900.8,0.00020273,2]
[330527430,1719558737290,-2841.37,0.00020273,2]
[330527431,1719558737300,-500.0,0.00020273,2]
[330527432,1719558737309,-3091.06,0.00020273,2]
[330527433,1719558737320,-1314.15,0.00020273,2]
[330527434,1719558737329,-500.0,0.00020273,2]
[330527435,1719558737339,-10674.02,0.00020273,2]
[330527436,1719558737348,-615.33213656,0.00020273,2]
[330527437,1719558737357,-500.0,0.00020273,2]
[330527438,1719558737367,-1430.61,0.00020273,2]
[330527439,1719558737376,-1049.59,0.00020273,2]
[330527440,1719558737385,-500.0,0.00020273,2]
[330527441,1719558737394,-520.64,0.00020273,2]
[330527442,1719558737403,-500.0,0.00020273,2]
[330527443,1719558737412,-1837.31,0.00020273,2]
[330527444,1719558737423,-5415.95,0.00020273,2]
[330527445,1719558737432,-501.92663166,0.00020273,2]
[330527446,1719558737443,-3021.99,0.00020273,2]
[330527447,1719558737453,-1765.61,0.00020273,2]
[330527448,1719558737462,-604.02,0.00020273,2]
[330527449,1719558737471,-500.0,0.00020273,2]
[330527450,1719558737480,-500.0,0.00020273,2]
[330527451,1719558737489,-956.48,0.00020273,2]
[330527452,1719558737498,-3522.3,0.00020273,2]
[330527453,1719558737507,-1331.89,0.00020273,2]
[330527454,1719558737517,-500.0,0.00020273,2]
[330527455,1719558737526,-866.52,0.00020273,2]
[330527456,1719558737535,-1300.16,0.00020273,2]
[330527457,1719558737545,-745.7,0.00020273,2]
[330527458,1719558737554,-649.04860809,0.00020273,2]
[330527459,1719558737563,-500.0,0.00020273,2]
[330527460,1719558737572,-500.0,0.00020273,2]
[330527461,1719558737582,-2212.34,0.00020273,2]
[330527462,1719558737590,-500.0,0.00020273,2]
[330527463,1719558737599,-500.0,0.00020273,2]
[330527464,1719558737609,-1071.7,0.00020273,2]
[330527465,1719558737618,-500.0,0.00020273,2]
[330527466,1719558737627,-500.0,0.00020273,2]
[330527467,1719558737637,-747.3,0.00020273,2]
[330527468,1719558737649,-500.0,0.00020273,2]
[330527469,1719558737658,-500.0,0.00020273,2]